fUSD/lending_fUSD_20241125
["ID","MTS","AMOUNT","RATE_DAILY","PERIOD"]
[343257116,1732533051438,-500.0,0.00043987,21]
[343257117,1732533051447,-151.0,0.00043987,14]
[343257118,1732533051457,-151.0,0.00043987,14]
[343257119,1732533051467,-180.0,0.00044,120]
[343257120,1732533051479,-5000.0,0.00044,94]
[343257121,1732533051489,-5000.0,0.00044,96]
[343257122,1732533051499,-250.0,0.00044,60]
[343257123,1732533051508,-8867.87649039,0.00044,120]
[343257124,1732533051518,-500.0,0.00044006,21]
[343257125,1732533051528,-500.0,0.00044006,21]
[343257126,1732533051538,-761.85,0.00044006,21]
[343257127,1732533051547,-928.86,0.00044006,21]
[343257128,1732533051557,-500.0,0.00044006,21]
[343257129,1732533051567,-562.134606,0.00044006,7]
[343257130,1732533051577,-779.71,0.00044006,21]
[343257131,1732533051586,-500.0,0.00044006,21]
[343257132,1732533051595,-500.0,0.00044006,21]
[343257133,1732533051605,-500.0,0.00044006,21]
[343257134,1732533051614,-500.0,0.00044006,21]
[343257135,1732533051623,-500.0,0.00044006,21]
[343257136,1732533051633,-580.99,0.00044006,21]
[343257137,1732533051642,-500.0,0.00044006,21]
[343257138,1732533051652,-500.0,0.00044006,21]
[343257139,1732533051662,-818.46,0.00044006,21]
[343257140,1732533051672,-752.28,0.00044006,21]
[343257141,1732533051682,-1102.69,0.00044006,21]
[343257142,1732533051691,-767.35,0.00044006,21]
[343257143,1732533051701,-177.02830925,0.00044009,19]
[343257144,1732533051711,-500.0,0.00044058,21]
[343257145,1732533051721,-2000.0,0.00044149,2]
[343257146,1732533051730,-2000.0,0.00044149,2]
[343257147,1732533051739,-500.0,0.00044254,120]
[343257148,1732533051748,-500.0,0.00044258,21]
[343257149,1732533051758,-500.0,0.00044258,21]
[343257150,1732533051767,-2213.91,0.00044259,21]
[343257151,1732533051777,-268.54,0.00044259,21]
[343257152,1732533051786,-500.0,0.00044259,21]
[343257153,1732533051795,-577.14,0.00044259,21]
[343257154,1732533051805,-565.52636809,0.00044259,21]
[343257155,1732533051814,-500.0,0.00044259,21]
[343257156,1732533051823,-1617.04,0.00044259,21]
[343257157,1732533051832,-546.9,0.00044259,21]
[343257158,1732533051842,-1763.64,0.00044259,21]
[343257159,1732533051851,-4763.25,0.00044259,21]
[343257160,1732533051861,-1996.29,0.00044259,21]
[343257161,1732533051870,-500.0,0.0004426,21]
[343257162,1732533051880,-500.0,0.0004426,21]
[343257163,1732533051889,-1721.9,0.0004426,21]
[343257164,1732533051898,-2153.49,0.0004426,21]
[343257165,1732533051907,-500.0,0.0004426,21]
[343257166,1732533051917,-1113.59,0.0004426,21]
[343257167,1732533051926,-2119.8,0.0004426,21]
[343257168,1732533051936,-500.0,0.0004426,21]
[343257169,1732533051945,-843.63,0.0004426,2]
[343257170,1732533051954,-500.0,0.0004426,21]
[343257171,1732533051965,-1553.14,0.0004426,21]
[343257172,1732533051974,-352.3019591,0.0004426,21]
[343257173,1732533051984,-894.49,0.0004426,21]
[343257174,1732533051993,-1431.01,0.0004426,21]
[343257175,1732533052003,-512.9,0.0004426,21]
[343257176,1732533052012,-500.0,0.0004426,21]
[343257177,1732533052021,-1259.85,0.0004426,21]
[343257178,1732533052030,-500.0,0.0004426,21]
[343257179,1732533052040,-500.0,0.0004426,21]
[343257180,1732533052049,-3065.29,0.0004426,21]
[343257181,1732533052059,-702.07,0.0004426,21]
[343257182,1732533052068,-500.0,0.0004426,21]
[343257183,1732533052078,-500.0,0.0004426,21]
[343257184,1732533052087,-659.31,0.0004426,21]
[343257185,1732533052096,-686.68,0.0004426,21]
[343257186,1732533052105,-479.12862378,0.0004426,21]
[343257187,1732533052115,-5528.84,0.00044261,21]
[343257188,1732533052124,-1922.44,0.00044261,21]
[343257189,1732533052134,-500.0,0.00044261,21]
[343257190,1732533052143,-195.919941,0.00044261,14]
[343257191,1732533052153,-195.919941,0.00044261,14]
[343257192,1732533052163,-500.0,0.0004428,21]
[343257193,1732533052177,-500.0,0.0004428,21]
[343257194,1732533052187,-761.85,0.0004428,21]
[343257195,1732533052196,-928.86,0.0004428,21]
[343257196,1732533052207,-500.0,0.0004428,21]
[343257197,1732533052217,-779.71,0.0004428,21]
[343257198,1732533052227,-500.0,0.0004428,21]
[343257199,1732533052236,-500.0,0.0004428,21]
[343257200,1732533052247,-500.0,0.0004428,21]
[343257201,1732533052256,-500.0,0.0004428,21]
[343257202,1732533052266,-500.0,0.0004428,21]
[343257203,1732533052275,-580.99,0.0004428,21]
[343257204,1732533052284,-500.0,0.0004428,21]
[343257205,1732533052294,-500.0,0.0004428,21]
[343257206,1732533052303,-818.46,0.0004428,21]
[343257207,1732533052312,-752.28,0.0004428,21]
[343257208,1732533052322,-1102.69,0.0004428,21]
[343257209,1732533052332,-767.35,0.0004428,21]
[343257210,1732533052341,-181.30819975,0.00044284,30]
[343257211,1732533052350,-4774.35670012,0.000443,2]
[343257212,1732533052362,-801.82053973,0.000443,2]
[343257213,1732533052372,-181.08728607,0.00044332,21]
[343257214,1732533052384,-318.91271393,0.00044332,21]
[343257215,1732533052393,-293.10182859,0.00044382,7]
[343257216,1732533052402,-421.95029097,0.00044382,30]
[343257217,1732533052411,-151.0,0.00044382,14]
[343257218,1732533052420,-151.0,0.00044382,14]
[343257219,1732533052430,-151.0,0.00044382,14]
[343257220,1732533052439,-254.923389,0.00044382,14]
[343257221,1732533052448,-1669.452922,0.00044382,14]
[343257222,1732533052457,-1669.452922,0.00044382,14]
[343257223,1732533052467,-151.0,0.00044383,14]
[343257224,1732533052477,-151.0,0.00044383,14]
[343257225,1732533052486,-403.66,0.00044388,120]
[343257226,1732533052495,-230.56550042,0.0004447,15]
[343257227,1732533052505,-431.92407613,0.00044495,28]
[343257228,1732533052514,-60711.2427592,0.000445,30]
[343257229,1732533052537,-500.0,0.00040424,21]
[343257230,1732533052546,-34502.0508022,0.000445,30]
[343257231,1732533052557,-98223.64440589,0.000445,30]
[343257232,1732533052568,-25355.372928,0.000445,30]
[343257233,1732533052580,-125887.03564082,0.000445,30]
[343257234,1732533052589,-195.919941,0.000445,14]
[343257235,1732533052598,-195.919941,0.000445,14]
[343257236,1732533052608,-500.0,0.00044528,120]
[343257237,1732533052617,-500.0,0.00044532,21]
[343257238,1732533052626,-500.0,0.00044532,21]
[343257239,1732533052635,-2213.91,0.00044533,21]
[343257240,1732533052644,-500.0,0.00044533,21]
[343257241,1732533052653,-577.14,0.00044533,21]
[343257242,1732533052663,-500.0,0.00044533,21]
[343257243,1732533052672,-1617.04,0.00044533,21]
[343257244,1732533052681,-546.9,0.00044533,21]
[343257245,1732533052720,-1763.64,0.00044533,21]
[343257246,1732533052729,-4763.25,0.00044533,21]
[343257247,1732533052738,-1996.29,0.00044533,21]
[343257248,1732533052748,-500.0,0.00044534,21]
[343257249,1732533052757,-500.0,0.00044534,21]
[343257250,1732533052766,-1721.9,0.00044534,21]
[343257251,1732533052775,-2153.49,0.00044534,21]
[343257252,1732533052786,-500.0,0.00044534,21]
[343257253,1732533052795,-1113.59,0.00044534,21]
[343257254,1732533052804,-2119.8,0.00044534,21]
[343257255,1732533052812,-500.0,0.00044534,21]
[343257256,1732533052822,-843.63,0.00044534,2]
[343257257,1732533052831,-500.0,0.00044534,21]
[343257258,1732533052840,-1553.14,0.00044534,21]
[343257259,1732533052849,-894.49,0.00044534,21]
[343257260,1732533052859,-1431.01,0.00044534,21]
[343257261,1732533052868,-512.9,0.00044534,21]
[343257262,1732533052877,-500.0,0.00044534,21]
[343257263,1732533052886,-1259.85,0.00044534,21]
[343257264,1732533052896,-500.0,0.00044534,21]
[343257265,1732533052906,-500.0,0.00044534,21]
[343257266,1732533052915,-3065.29,0.00044534,21]
[343257267,1732533052924,-702.07,0.00044534,21]
[343257268,1732533052934,-500.0,0.00044534,21]
[343257269,1732533052943,-155.439369,0.00044534,21]
[343257270,1732533052952,-266.26393598,0.00044534,21]
[343257271,1732533052961,-659.31,0.00044534,21]
[343257272,1732533052971,-686.68,0.00044534,21]
[343257273,1732533052980,-5528.84,0.00044535,21]
[343257274,1732533052990,-1922.44,0.00044535,21]
[343257275,1732533052999,-228.18362153,0.00044535,21]
[343257276,1732533053009,-151.0,0.00044535,14]
[343257277,1732533053018,-151.0,0.00044535,14]
[343257278,1732533053027,-151.0,0.00044535,14]
[343257279,1732533053037,-1669.452922,0.00044535,14]
[343257280,1732533053046,-1669.452922,0.00044535,14]
[343257281,1732533053056,-500.0,0.00044554,21]
[343257282,1732533053066,-500.0,0.00044554,21]
[343257283,1732533053077,-761.85,0.00044554,21]
[343257284,1732533053087,-928.86,0.00044554,21]
[343257285,1732533053098,-500.0,0.00044554,21]
[343257286,1732533053108,-779.71,0.00044554,21]
[343257287,1732533053119,-514.57066793,0.00044554,21]
[343257288,1732533053128,-500.0,0.00044554,21]
[343257289,1732533053138,-500.0,0.00044554,21]
[343257290,1732533053147,-500.0,0.00044554,21]
[343257291,1732533053157,-500.0,0.00044554,21]
[343257292,1732533053167,-580.99,0.00044554,21]
[343257293,1732533053180,-500.0,0.00044554,21]
[343257294,1732533053190,-500.0,0.00044554,21]
[343257295,1732533053199,-818.46,0.00044554,21]
[343257296,1732533053209,-752.28,0.00044554,21]
[343257297,1732533053222,-1102.69,0.00044554,21]
[343257298,1732533053231,-767.35,0.00044554,21]
[343257299,1732533053240,-151.0,0.00044554,14]
[343257300,1732533053251,-151.0,0.00044554,14]
[343257301,1732533053261,-171.53,0.00044564,2]
[343257302,1732533053270,-500.0,0.00044606,21]
[343257303,1732533053280,-2891.14489956,0.0004462,2]
[343257304,1732533053289,-204.0,0.0004466,30]
[343257305,1732533053299,-201.0,0.0004466,30]
[343257306,1732533053308,-204.0,0.0004466,30]
[343257307,1732533053318,-203.0,0.0004469,30]
[343257308,1732533053328,-214.0,0.0004469,30]
[343257309,1732533053337,-337.09,0.00044722,30]
[343257310,1732533053346,-434.13,0.00044722,30]
[343257311,1732533053355,-434.13,0.00044722,30]
[343257312,1732533053365,-500.0,0.00044802,120]
[343257313,1732533053374,-500.0,0.00044802,120]
[343257314,1732533053383,-500.0,0.00044806,21]
[343257315,1732533053392,-500.0,0.00044806,21]
[343257316,1732533053402,-2213.91,0.00044807,21]
[343257317,1732533053411,-500.0,0.00044807,21]
[343257318,1732533053420,-577.14,0.00044807,21]
[343257319,1732533053430,-500.0,0.00044807,21]
[343257320,1732533053439,-1617.04,0.00044807,21]
[343257321,1732533053448,-546.9,0.00044807,21]
[343257322,1732533053457,-1763.64,0.00044807,21]
[343257323,1732533053468,-4763.25,0.00044807,21]
[343257324,1732533053477,-1996.29,0.00044807,21]
[343257325,1732533053486,-500.0,0.00044808,21]
[343257326,1732533053496,-500.0,0.00044808,21]
[343257327,1732533053505,-1721.9,0.00044808,21]
[343257328,1732533053515,-2153.49,0.00044808,21]
[343257329,1732533053524,-500.0,0.00044808,21]
[343257330,1732533053533,-1113.59,0.00044808,21]
[343257331,1732533053542,-2119.8,0.00044808,21]
[343257332,1732533053551,-500.0,0.00044808,21]
[343257333,1732533053560,-843.63,0.00044808,2]
[343257334,1732533053569,-500.0,0.00044808,21]
[343257335,1732533053579,-1553.14,0.00044808,21]
[343257336,1732533053588,-894.49,0.00044808,21]
[343257337,1732533053598,-1431.01,0.00044808,21]
[343257338,1732533053607,-512.9,0.00044808,21]
[343257339,1732533053616,-500.0,0.00044808,21]
[343257340,1732533053625,-1259.85,0.00044808,21]
[343257341,1732533053634,-338.51884129,0.00044808,21]
[343257343,1732533053644,-500.0,0.00044808,21]
[343257344,1732533053653,-3065.29,0.00044808,21]
[343257345,1732533053662,-702.07,0.00044808,21]
[343257346,1732533053672,-500.0,0.00044808,21]
[343257347,1732533053681,-659.31,0.00044808,21]
[343257348,1732533053690,-686.68,0.00044808,21]
[343257349,1732533053699,-5528.84,0.00044809,21]
[343257350,1732533053709,-1922.44,0.00044809,21]
[343257352,1732533053719,-500.0,0.00044828,21]
[343257354,1732533053728,-177.88725171,0.00044828,21]
[343257355,1732533053738,-761.85,0.00044828,21]
[343257357,1732533053747,-928.86,0.00044828,21]
[343257359,1732533053757,-500.0,0.00044828,21]
[343257360,1732533053766,-779.71,0.00044828,21]
[343257361,1732533053775,-500.0,0.00044828,21]
[343257362,1732533053784,-500.0,0.00044828,21]
[343257363,1732533053793,-407.00388319,0.00044828,21]
[343257365,1732533053803,-500.0,0.00044828,21]
[343257366,1732533053812,-580.99,0.00044828,21]
[343257367,1732533053821,-500.0,0.00044828,21]
[343257368,1732533053831,-500.0,0.00044828,21]
[343257369,1732533053840,-818.46,0.00044828,21]
[343257370,1732533053850,-752.28,0.00044828,21]
[343257371,1732533053860,-1102.69,0.00044828,21]
[343257372,1732533053869,-767.35,0.00044828,21]
[343257373,1732533053878,-158.13,0.00044858,2]
[343257374,1732533053888,-459.73787531,0.0004488,21]
[343257375,1732533053898,-195.919941,0.00044881,14]
[343257376,1732533053908,-195.919941,0.00044881,14]
[343257377,1732533053917,-316.24,0.000449,77]
[343257378,1732533053926,-500.0,0.00044999,120]
[343257379,1732533053935,-2000.0,0.00045,40]
[343257380,1732533053944,-17360.45462126,0.00045,2]
[343257381,1732533053954,-31299.11766678,0.00045,2]
[343257382,1732533053963,-150.0,0.00045,85]
[343257383,1732533053972,-2000.0,0.00045,30]
[343257384,1732533053981,-1197.98,0.00045,2]
[343257385,1732533053991,-19915.01680772,0.00045,120]
[343257386,1732533054000,-2708.4199614,0.00045,120]
[343257387,1732533054009,-10000.0,0.00045,120]
[343257388,1732533054018,-10000.0,0.00045,120]
[343257389,1732533054027,-12910.91422835,0.00045,120]
[343257390,1732533054037,-200.0,0.00045,10]
[343257391,1732533054047,-224.0,0.00045,30]
[343257392,1732533054057,-153.0,0.00045,120]
[343257393,1732533054066,-10000.0,0.00045,120]
[343257394,1732533054076,-500.0,0.00045,3]
[343257395,1732533054086,-500.0,0.00045,60]
[343257396,1732533054096,-200.0,0.00045,60]
[343257397,1732533054108,-196.93804946,0.00045,120]
[343257398,1732533054118,-1376.06537441,0.00045,120]
[343257399,1732533054129,-600.0,0.00045,2]
[343257400,1732533054139,-10215.0,0.00045,120]
[343257401,1732533054150,-30092.0,0.00045,120]
[343257402,1732533054159,-90210.26711334,0.00045,120]
[343257403,1732533054170,-151.0,0.00045,14]
[343257404,1732533054183,-151.0,0.00045,14]
[343257405,1732533054193,-151.0,0.00045,14]
[343257406,1732533054203,-1000.0,0.00045,120]
[343257407,1732533054215,-151.0,0.00045,14]
[343257408,1732533054226,-5000.0,0.00045,120]
[343257409,1732533054236,-1669.452922,0.00045,14]
[343257410,1732533054246,-1669.452922,0.00045,14]
[343257411,1732533054257,-765.65,0.00045068,30]
[343257412,1732533054267,-500.0,0.00045076,120]
[343257413,1732533054277,-500.0,0.0004508,21]
[343257414,1732533054287,-500.0,0.0004508,21]
[343257415,1732533054298,-2213.91,0.00045081,21]
[343257416,1732533054307,-500.0,0.00045081,21]
[343257417,1732533054316,-577.14,0.00045081,21]
[343257418,1732533054327,-500.0,0.00045081,21]
[343257419,1732533054337,-1617.04,0.00045081,21]
[343257420,1732533054347,-546.9,0.00045081,21]
[343257421,1732533054357,-1763.64,0.00045081,21]
[343257422,1732533054367,-4763.25,0.00045081,21]
[343257423,1732533054377,-1996.29,0.00045081,21]
[343257424,1732533054386,-568.03070969,0.00045082,21]
[343257425,1732533054396,-500.0,0.00045082,21]
[343257426,1732533054406,-1721.9,0.00045082,21]
[343257427,1732533054416,-2153.49,0.00045082,21]
[343257428,1732533054426,-367.71060242,0.00045082,21]
[343257429,1732533054435,-1113.59,0.00045082,21]
[343257430,1732533054445,-2119.8,0.00045082,21]
[343257431,1732533054454,-500.0,0.00045082,21]
[343257432,1732533054464,-843.63,0.00045082,2]
[343257433,1732533054475,-500.0,0.00045082,21]
[343257434,1732533054484,-1553.14,0.00045082,21]
[343257435,1732533054493,-894.49,0.00045082,21]
[343257436,1732533054504,-1431.01,0.00045082,21]
[343257437,1732533054514,-512.9,0.00045082,21]
[343257438,1732533054523,-500.0,0.00045082,21]
[343257439,1732533054533,-1259.85,0.00045082,21]
[343257440,1732533054543,-500.0,0.00045082,21]
[343257441,1732533054553,-3065.29,0.00045082,21]
[343257442,1732533054562,-702.07,0.00045082,21]
[343257443,1732533054572,-500.0,0.00045082,21]
[343257444,1732533054581,-155.439369,0.00045082,21]
[343257445,1732533054591,-659.31,0.00045082,21]
[343257446,1732533054600,-686.68,0.00045082,21]
[343257447,1732533054610,-5528.84,0.00045083,21]
[343257448,1732533054619,-1922.44,0.00045083,21]
[343257449,1732533054629,-195.919941,0.00045083,14]
[343257450,1732533054639,-195.919941,0.00045083,14]
[343257451,1732533054648,-500.0,0.00045102,21]
[343257452,1732533054658,-761.85,0.00045102,21]
[343257453,1732533054667,-928.86,0.00045102,21]
[343257454,1732533054677,-460.20899487,0.00045102,21]
[343257455,1732533054687,-779.71,0.00045102,21]
[343257456,1732533054697,-642.80014465,0.00045102,21]
[343257457,1732533054706,-509.60296147,0.00045102,21]
[343257458,1732533054716,-500.0,0.00045102,21]
[343257459,1732533054726,-580.99,0.00045102,21]
[343257460,1732533054735,-500.0,0.00045102,21]
[343257461,1732533054745,-500.0,0.00045102,21]
[343257462,1732533054756,-818.46,0.00045102,21]
[343257463,1732533054766,-752.28,0.00045102,21]
[343257464,1732533054775,-1102.69,0.00045102,21]
[343257465,1732533054785,-767.35,0.00045102,21]
[343257466,1732533054794,-151289.0,0.00045119,10]
[343257467,1732533054804,-193.0,0.00045119,10]
[343257468,1732533054813,-2000.0,0.00045145,120]
[343257469,1732533054823,-620.58,0.000452,2]
[343257470,1732533054832,-151.0,0.00045204,14]
[343257471,1732533054841,-151.0,0.00045204,14]
[343257472,1732533054851,-200.0,0.00045205,2]
[343257473,1732533054861,-179.49,0.00045242,2]
[343257474,1732533054871,-431.92407613,0.00045247,28]
[343257475,1732533054880,-230.56550042,0.00045303,15]
[343257476,1732533054890,-500.0,0.0004535,120]
[343257477,1732533054899,-500.0,0.00045354,21]
[343257478,1732533054909,-500.0,0.00045354,21]
[343257479,1732533054920,-2213.91,0.00045355,21]
[343257480,1732533054929,-500.0,0.00045355,21]
[343257481,1732533054940,-577.14,0.00045355,21]
[343257482,1732533054952,-500.0,0.00045355,21]
[343257483,1732533054975,-1617.04,0.00045355,21]
[343257484,1732533054985,-546.9,0.00045355,21]
[343257485,1732533054994,-1763.64,0.00045355,21]
[343257486,1732533055008,-4763.25,0.00045355,21]
[343257487,1732533055018,-1996.29,0.00045355,21]
[343257488,1732533055028,-500.0,0.00045356,21]
[343257489,1732533055037,-1721.9,0.00045356,21]
[343257490,1732533055047,-2153.49,0.00045356,21]
[343257491,1732533055056,-1113.59,0.00045356,21]
[343257492,1732533055066,-2119.8,0.00045356,21]
[343257493,1732533055075,-500.0,0.00045356,21]
[343257494,1732533055085,-843.63,0.00045356,2]
[343257495,1732533055095,-500.0,0.00045356,21]
[343257496,1732533055104,-1553.14,0.00045356,21]
[343257497,1732533055113,-894.49,0.00045356,21]
[343257498,1732533055123,-1431.01,0.00045356,21]
[343257499,1732533055133,-512.9,0.00045356,21]
[343257500,1732533055142,-225.83080382,0.00045356,21]
[343257501,1732533055152,-1259.85,0.00045356,21]
[343257502,1732533055161,-500.0,0.00045356,21]
[343257503,1732533055172,-3065.29,0.00045356,21]
[343257504,1732533055187,-702.07,0.00045356,21]
[343257505,1732533055201,-500.0,0.00045356,21]
[343257506,1732533055222,-155.439369,0.00045356,21]
[343257507,1732533055237,-151.0,0.00045356,14]
[343257508,1732533055247,-151.0,0.00045356,14]
[343257509,1732533055256,-659.31,0.00045356,21]
[343257510,1732533055266,-686.68,0.00045356,21]
[343257511,1732533055276,-1669.452922,0.00045356,14]
[343257512,1732533055286,-1669.452922,0.00045356,14]
[343257513,1732533055295,-5528.84,0.00045357,21]
[343257514,1732533055306,-1922.44,0.00045357,21]
[343257515,1732533055315,-150.0,0.00045361,2]
[343257516,1732533055325,-150.0,0.00045361,2]
[343257517,1732533055336,-816.0,0.00045361,2]
[343257518,1732533055345,-500.0,0.00045376,21]
[343257519,1732533055356,-761.85,0.00045376,21]
[343257520,1732533055365,-928.86,0.00045376,21]
[343257521,1732533055374,-779.71,0.00045376,21]
[343257522,1732533055384,-500.0,0.00045376,21]
[343257523,1732533055393,-580.99,0.00045376,21]
[343257524,1732533055403,-500.0,0.00045376,21]
[343257525,1732533055413,-243.19090052,0.00045376,21]
[343257526,1732533055422,-818.46,0.00045376,21]
[343257527,1732533055431,-752.28,0.00045376,21]
[343257528,1732533055441,-1102.69,0.00045376,21]
[343257529,1732533055451,-767.35,0.00045376,21]
[343257530,1732533055460,-195.919941,0.00045377,14]
[343257531,1732533055471,-195.919942,0.00045377,14]
[343257532,1732533055480,-200.0,0.00045431,120]
[343257533,1732533055489,-337.66,0.00045433,30]
[343257534,1732533055499,-152.6,0.00045433,30]
[343257535,1732533055508,-329.1,0.00045433,30]
[343257536,1732533055519,-150.0,0.00045433,30]
[343257537,1732533055528,-363.18,0.00045433,30]
[343257538,1732533055537,-150.0,0.00045433,30]
[343257539,1732533055546,-150.0,0.00045433,30]
[343257540,1732533055556,-150.0,0.00045433,30]
[343257541,1732533055566,-150.0,0.00045433,30]
[343257542,1732533055575,-150.0,0.00045433,30]
[343257543,1732533055585,-363.18,0.00045433,30]
[343257544,1732533055594,-150.0,0.00045433,30]
[343257545,1732533055604,-434.13,0.00045433,30]
[343257546,1732533055614,-363.18,0.00045433,30]
[343257547,1732533055624,-150.0,0.00045433,30]
[343257548,1732533055634,-150.0,0.00045433,30]
[343257549,1732533055643,-150.0,0.00045433,30]
[343257550,1732533055652,-363.18,0.00045433,30]
[343257551,1732533055662,-150.0,0.00045433,30]
[343257552,1732533055671,-434.13,0.00045433,30]
[343257553,1732533055680,-150.0,0.00045433,30]
[343257554,1732533055690,-388.86,0.00045433,30]
[343257555,1732533055700,-362.86,0.00045433,30]
[343257556,1732533055711,-500.0,0.00045504,120]
[343257557,1732533055722,-798.04889469,0.00045563,15]
[343257558,1732533055732,-204.0,0.0004557,30]
[343257559,1732533055741,-201.0,0.0004557,30]
[343257560,1732533055750,-204.0,0.0004557,30]
[343257561,1732533055760,-2110.0,0.00045598,30]
[343257562,1732533055770,-500.0,0.00045624,120]
[343257563,1732533055779,-500.0,0.00045628,21]
[343257564,1732533055789,-500.0,0.00045628,21]
[343257565,1732533055799,-2213.91,0.00045629,21]
[343257566,1732533055808,-500.0,0.00045629,21]
[343257567,1732533055817,-577.14,0.00045629,21]
[343257568,1732533055827,-500.0,0.00045629,21]
[343257569,1732533055837,-1617.04,0.00045629,21]
[343257570,1732533055847,-546.9,0.00045629,21]
[343257571,1732533055856,-1763.64,0.00045629,21]
[343257572,1732533055866,-4763.25,0.00045629,21]
[343257573,1732533055876,-500.0,0.0004563,21]
[343257574,1732533055885,-1721.9,0.0004563,21]
[343257575,1732533055894,-2153.49,0.0004563,21]
[343257576,1732533055903,-1113.59,0.0004563,21]
[343257577,1732533055913,-2119.8,0.0004563,21]
[343257578,1732533055922,-500.0,0.0004563,21]
[343257579,1732533055931,-843.63,0.0004563,2]
[343257580,1732533055941,-307.13560514,0.0004563,21]
[343257581,1732533055950,-1553.14,0.0004563,21]
[343257582,1732533055959,-894.49,0.0004563,21]
[343257583,1732533055970,-1431.01,0.0004563,21]
[343257584,1732533055980,-512.9,0.0004563,21]
[343257585,1732533055990,-1259.85,0.0004563,21]
[343257586,1732533056000,-500.0,0.0004563,21]
[343257587,1732533056010,-3065.29,0.0004563,21]
[343257588,1732533056020,-702.07,0.0004563,21]
[343257589,1732533056030,-500.0,0.0004563,21]
[343257590,1732533056040,-659.31,0.0004563,21]
[343257591,1732533056051,-686.68,0.0004563,21]
[343257592,1732533056060,-5528.84,0.00045631,21]
[343257593,1732533056070,-1922.44,0.00045631,21]
[343257594,1732533056080,-233.141432,0.00045631,14]
[343257595,1732533056091,-164.671281,0.00045631,14]
[343257596,1732533056100,-500.0,0.0004565,21]
[343257597,1732533056110,-761.85,0.0004565,21]
[343257598,1732533056120,-928.86,0.0004565,21]
[343257599,1732533056129,-779.71,0.0004565,21]
[343257600,1732533056139,-500.0,0.0004565,21]
[343257601,1732533056149,-580.99,0.0004565,21]
[343257602,1732533056159,-500.0,0.0004565,21]
[343257603,1732533056172,-818.46,0.0004565,21]
[343257604,1732533056185,-752.28,0.0004565,21]
[343257605,1732533056195,-1102.69,0.0004565,21]
[343257606,1732533056205,-767.35,0.0004565,21]
[343257607,1732533056215,-182.66,0.00045658,2]
[343257608,1732533056226,-152.0,0.00045663,6]
[343257609,1732533056236,-1000.0,0.00045678,7]
[343257610,1732533056247,-2158.21420954,0.000457,120]
[343257611,1732533056256,-203.0,0.0004576,30]
[343257612,1732533056265,-214.0,0.0004576,30]
[343257613,1732533056275,-2000.0,0.00045767,2]
[343257614,1732533056285,-2000.0,0.00045767,2]
[343257615,1732533056294,-857.92,0.00045774,2]
[343257616,1732533056304,-500.0,0.00045882,120]
[343257617,1732533056314,-678.403,0.00045888,120]
[343257618,1732533056324,-500.0,0.00045898,120]
[343257619,1732533056334,-500.0,0.00045898,120]
[343257620,1732533056343,-503.46462977,0.00045898,120]
[343257621,1732533056353,-151.0,0.000459,14]